fUSD/lending_fUSD_20260529
["ID","MTS","AMOUNT","RATE_DAILY","PERIOD"]
[423295183,1780039839000,-255.0,0.00014587,2]
[423295164,1780039839000,-158.8,0.00014467,2]
[423295157,1780039839000,-1400.0,0.000143,5]
[423295175,1780039839000,-150.0,0.00014487,2]
[423295173,1780039839000,-150.0,0.00014487,2]
[423295162,1780039839000,-2100.0,0.000144,5]
[423295159,1780039839000,-150.0,0.00014362,2]
[423295181,1780039839000,-222.59,0.00014504,2]
[423295177,1780039839000,-2900.0,0.000145,5]
[423295187,1780039839000,-150.0,0.00014612,2]
[423295203,1780039839000,-608.6481784,0.00014789,2]
[423295191,1780039839000,-150.0,0.00014737,2]
[423295193,1780039839000,-150.0,0.00014737,2]
[423295195,1780039839000,-150.0,0.00014737,2]
[423295197,1780039839000,-150.0,0.00014737,2]
[423295189,1780039839000,-700.0,0.000147,5]
[423295201,1780039839000,-409.77192806,0.00014789,2]
[423295199,1780039839000,-163.28,0.00014752,2]
[423295211,1780039839000,-500.0,0.00014889,2]
[423295205,1780039839000,-500.0,0.00014789,2]
[423295207,1780039839000,-700.0,0.000148,5]
[423295210,1780039839000,-150.0,0.00014861,2]
[423295143,1780039839000,-150.0,0.00014237,2]
[423295209,1780039839000,-500.0,0.00014815,2]
[423295185,1780039839000,-3600.0,0.000146,5]
[423295151,1780039839000,-150.0,0.00014237,2]
[423295121,1780039839000,-300.0,0.00014057,2]
[423295137,1780039839000,-500.0,0.00014057,2]
[423295100,1780039839000,-150.0,0.00013987,2]
[423295102,1780039839000,-150.0,0.00013987,2]
[423295104,1780039839000,-150.0,0.00013987,2]
[423295106,1780039839000,-150.0,0.00013987,2]
[423295108,1780039839000,-200.0,0.00014,2]
[423295107,1780039839000,-250.0,0.00014,2]
[423295094,1780039839000,-507.71278591,0.00013904,2]
[423295098,1780039839000,-150.0,0.00013987,2]
[423295096,1780039839000,-168.97898012,0.00013904,2]
[423295112,1780039839000,-300.0,0.00014057,2]
[423295110,1780039839000,-600.0,0.00014057,2]
[423295113,1780039839000,-300.0,0.00014057,2]
[423295117,1780039839000,-600.0,0.00014057,2]
[423295139,1780039839000,-150.0,0.00014112,2]
[423295116,1780039839000,-189.78132957,0.00014057,2]
[423295127,1780039839000,-150.04356702,0.00014057,2]
[423295129,1780039839000,-600.0,0.00014057,2]
[423295212,1780039839000,-500.0,0.00014889,2]
[423295125,1780039839000,-250.0,0.00014057,2]
[423295123,1780039839000,-300.0,0.00014057,2]
[423295131,1780039839000,-600.0,0.00014057,2]
[423295119,1780039839000,-300.0,0.00014057,2]
[423295135,1780039839000,-250.0,0.00014057,2]
[423295149,1780039839000,-150.0,0.00014237,2]
[423295141,1780039839000,-700.0,0.000142,5]
[423295155,1780039839000,-163.28,0.00014277,2]
[423295153,1780039839000,-150.0,0.00014237,2]
[423295145,1780039839000,-150.0,0.00014237,2]
[423295134,1780039839000,-634.94009101,0.00014057,2]
[423295215,1780039839000,-500.0,0.0001489,2]
[423295147,1780039839000,-150.0,0.00014237,2]
[423295218,1780039839000,-500.0,0.0001489,2]
[423295281,1780039839000,-218.26213481,0.00014986,2]
[423295282,1780039839000,-1320.6697525,0.00014998,5]
[423295283,1780039839000,-500.0,0.00014999,2]
[423295308,1780039839000,-500.0,0.00014999,2]
[423295284,1780039839000,-500.0,0.00014999,2]
[423295293,1780039839000,-453.38631548,0.00014999,2]
[423295286,1780039839000,-500.0,0.00014999,2]
[423295294,1780039839000,-500.0,0.00014999,2]
[423295287,1780039839000,-500.0,0.00014999,2]
[423295289,1780039839000,-500.0,0.00014999,2]
[423295285,1780039839000,-500.0,0.00014999,2]
[423295288,1780039839000,-500.0,0.00014999,2]
[423295290,1780039839000,-500.0,0.00014999,2]
[423295279,1780039839000,-268.25269005,0.00014986,2]
[423295292,1780039839000,-500.0,0.00014999,2]
[423295296,1780039839000,-500.0,0.00014999,2]
[423295297,1780039839000,-500.0,0.00014999,2]
[423295307,1780039839000,-1089.96619433,0.00014999,5]
[423295306,1780039839000,-512.27479317,0.00014999,2]
[423295299,1780039839000,-500.0,0.00014999,2]
[423295298,1780039839000,-500.0,0.00014999,2]
[423295300,1780039839000,-500.0,0.00014999,2]
[423295302,1780039839000,-500.0,0.00014999,2]
[423295305,1780039839000,-500.0,0.00014999,2]
[423295301,1780039839000,-500.0,0.00014999,2]
[423295303,1780039839000,-500.0,0.00014999,2]
[423295304,1780039839000,-500.0,0.00014999,2]
[423295217,1780039839000,-500.0,0.0001489,2]
[423295295,1780039839000,-500.0,0.00014999,2]
[423295275,1780039839000,-170.80683718,0.00014986,2]
[423295291,1780039839000,-500.0,0.00014999,2]
[423295266,1780039839000,-151.65429767,0.00014986,2]
[423295216,1780039839000,-500.0,0.0001489,2]
[423295214,1780039839000,-543.84,0.00014889,2]
[423295272,1780039839000,-154.66745117,0.00014986,2]
[423295213,1780039839000,-500.0,0.00014889,2]
[423295223,1780039839000,-500.0,0.0001489,2]
[423295221,1780039839000,-500.0,0.0001489,2]
[423295229,1780039839000,-778.37,0.0001489,2]
[423295227,1780039839000,-500.0,0.0001489,2]
[423295225,1780039839000,-500.0,0.0001489,2]
[423295231,1780039839000,-500.0,0.0001489,2]
[423295234,1780039839000,-25000.0,0.00014891,3]
[423295238,1780039839000,-10000.0,0.000149,2]
[423295236,1780039839000,-25000.0,0.000149,3]
[423295240,1780039839000,-5268.15610031,0.000149,2]
[423295246,1780039839000,-6759.5630458,0.000149,2]
[423295219,1780039839000,-500.0,0.0001489,2]
[423295244,1780039839000,-700.0,0.000149,5]
[423295250,1780039839000,-8779.08274728,0.000149,2]
[423295270,1780039839000,-343.0,0.00014986,2]
[423295262,1780039839000,-187.24,0.00014985,2]
[423295268,1780039839000,-150.83469577,0.00014986,2]
[423295258,1780039839000,-150.0,0.00014985,2]
[423295264,1780039839000,-152.23131078,0.00014986,2]
[423295277,1780039839000,-200.26909503,0.00014986,2]
[423295256,1780039839000,-264.07,0.00014985,2]
[423295254,1780039839000,-1269.09195344,0.000149,2]
[423295248,1780039839000,-58488.94628133,0.000149,2]
[423295252,1780039839000,-1206.11219157,0.000149,2]
[423295242,1780039839000,-5000.0,0.000149,2]
[423295260,1780039839000,-454.81,0.00014985,2]
[423295321,1780039840000,-543.84,0.00014999,2]
[423295322,1780039840000,-543.84,0.00014999,2]
[423295327,1780039840000,-543.84,0.00014999,2]
[423295325,1780039840000,-543.84,0.00014999,2]
[423295333,1780039840000,-543.84,0.00014999,2]
[423295324,1780039840000,-543.84,0.00014999,2]
[423295328,1780039840000,-543.84,0.00014999,2]
[423295323,1780039840000,-543.84,0.00014999,2]
[423295329,1780039840000,-543.84,0.00014999,2]
[423295326,1780039840000,-543.84,0.00014999,2]
[423295330,1780039840000,-543.84,0.00014999,2]
[423295319,1780039840000,-500.0,0.00014999,2]
[423295331,1780039840000,-543.84,0.00014999,2]
[423295315,1780039840000,-234.32677457,0.00014999,2]
[423295317,1780039840000,-500.0,0.00014999,2]
[423295312,1780039840000,-500.0,0.00014999,2]
[423295313,1780039840000,-500.0,0.00014999,2]
[423295318,1780039840000,-500.0,0.00014999,2]
[423295314,1780039840000,-500.0,0.00014999,2]
[423295316,1780039840000,-500.0,0.00014999,2]
[423295310,1780039840000,-500.0,0.00014999,2]
[423295311,1780039840000,-500.0,0.00014999,2]
[423295309,1780039840000,-500.0,0.00014999,2]
[423295332,1780039840000,-543.84,0.00014999,2]
[423295320,1780039840000,-545.46923841,0.00014999,2]
[423295334,1780039840000,-543.84,0.00014999,2]
[423295336,1780039840000,-543.84,0.00014999,2]
[423295342,1780039840000,-543.84,0.00014999,2]
[423295362,1780039840000,-8479.28673679,0.00015,2]
[423295361,1780039840000,-1165.63684784,0.00015,2]
[423295360,1780039840000,-693.42697033,0.00015,2]
[423295359,1780039840000,-3963260.31181742,0.00015,2]
[423295352,1780039840000,-300.0,0.00014999,2]
[423295350,1780039840000,-300.0,0.00014999,2]
[423295351,1780039840000,-666.0,0.00014999,2]
[423295357,1780039840000,-300.0,0.00014999,2]
[423295349,1780039840000,-300.0,0.00014999,2]
[423295355,1780039840000,-300.0,0.00014999,2]
[423295354,1780039840000,-300.0,0.00014999,2]
[423295358,1780039840000,-139596.4151825,0.00015,2]
[423295348,1780039840000,-666.0,0.00014999,2]
[423295346,1780039840000,-300.0,0.00014999,2]
[423295343,1780039840000,-544.03387043,0.00014999,2]
[423295341,1780039840000,-543.84,0.00014999,2]
[423295344,1780039840000,-310.82954872,0.00014999,2]
[423295340,1780039840000,-543.84,0.00014999,2]
[423295339,1780039840000,-543.84,0.00014999,2]
[423295335,1780039840000,-543.84,0.00014999,2]
[423295337,1780039840000,-543.84,0.00014999,2]
[423295345,1780039840000,-300.0,0.00014999,2]
[423295353,1780039840000,-300.0,0.00014999,2]
[423295356,1780039840000,-666.0,0.00014999,2]
[423295338,1780039840000,-543.84,0.00014999,2]
[423295401,1780039846000,-520.55023708,0.000149,2]
[423295400,1780039846000,-2774.27511272,0.000148,2]
[423295415,1780039908000,-1165.63684784,0.00012458,2]
[423295417,1780039937000,-345.16375216,0.00012458,2]
[423295420,1780040024000,505.84487336,0.00027549,120]
[423295421,1780040138000,500.0,0.00027549,120]
[423295614,1780040686000,1065.52,0.00027125,120]
[423295613,1780040686000,1065.52,0.00024865,120]
[423295618,1780040841000,-703.51252665,0.00012572,2]
[423295619,1780040862000,152.0,0.00026636,120]
[423295620,1780040893000,5000.0,0.00028082,120]
[423295621,1780040928000,2517.0,0.00028082,120]
[423295622,1780040941000,1000.0,0.00028081,120]
[423295623,1780040972000,1578.28518583,0.00028082,120]
[423295628,1780041032000,-578.80324387,0.00012472,2]
[423295632,1780041033000,-172.0,0.00012823,2]
[423295633,1780041033000,-203.39404146,0.00013028,7]
[423295634,1780041033000,-5350.95816729,0.0001308,2]
[423295630,1780041033000,-196.39024972,0.00012623,2]
[423295631,1780041033000,-150.0,0.00012698,2]
[423295629,1780041033000,-215.5484138,0.00012587,2]
[423295710,1780041038000,-158.59,0.00013384,2]
[423295712,1780041038000,-576.0,0.00013479,2]
[423295711,1780041038000,-662.77824317,0.00013479,2]
[423295716,1780041038000,-6847.0,0.00013479,2]
[423295717,1780041038000,-150.0,0.00013488,2]
[423295720,1780041038000,-150.0,0.00013488,2]
[423295719,1780041038000,-150.0,0.00013488,2]
[423295713,1780041038000,-1396.0,0.00013479,2]
[423295721,1780041038000,-150.83469577,0.00013488,2]
[423295722,1780041038000,-150.0,0.00013488,2]
[423295724,1780041038000,-150.0,0.00013488,2]
[423295718,1780041038000,-150.0,0.00013488,2]
[423295715,1780041038000,-429.0,0.00013479,2]
[423295707,1780041038000,-305.17,0.00013307,2]
[423295709,1780041038000,-152.0,0.00013345,2]
[423295708,1780041038000,-724.99,0.00013337,2]
[423295705,1780041038000,-261.57,0.00013307,2]
[423295706,1780041038000,-200.0,0.00013307,2]
[423295704,1780041038000,-1000.0,0.00013307,2]
[423295703,1780041038000,-2000.0,0.00013307,2]
[423295702,1780041038000,-23897.38,0.00013307,2]
[423295701,1780041038000,-1852.42,0.00013307,2]
[423295700,1780041038000,-152.0,0.00013122,30]
[423295699,1780041038000,-162.5292506,0.0001308,2]
[423295698,1780041038000,-341.50517263,0.0001308,2]
[423295725,1780041038000,-3877.15,0.00013512,2]
[423295714,1780041038000,-643.0,0.00013479,2]
[423295726,1780041038000,-150.0,0.00013512,2]
[423295743,1780041038000,-150.0,0.0001376,2]
[423295728,1780041038000,-186.45,0.00013512,2]
[423295723,1780041038000,-150.0,0.00013488,2]
[423295754,1780041038000,-500.0,0.00013903,2]
[423295753,1780041038000,-150.0,0.00013896,2]
[423295751,1780041038000,-150.0,0.00013862,2]
[423295752,1780041038000,-150.0,0.00013862,2]
[423295750,1780041038000,-150.0,0.00013851,2]
[423295748,1780041038000,-250.0,0.0001383,2]
[423295747,1780041038000,-150.0,0.00013821,2]
[423295746,1780041038000,-150.0,0.00013806,2]
[423295749,1780041038000,-300.0,0.0001383,2]
[423295744,1780041038000,-164.4,0.00013776,2]
[423295742,1780041038000,-150.0,0.00013715,2]
[423295739,1780041038000,-500.0,0.00013675,2]
[423295745,1780041038000,-305.09106221,0.00013795,7]
[423295740,1780041038000,-378.43958692,0.00013692,2]
[423295738,1780041038000,-150.0,0.00013675,2]
[423295729,1780041038000,-150.0,0.00013533,2]
[423295730,1780041038000,-150.0,0.00013578,2]
[423295731,1780041038000,-2918.477,0.00013599,2]
[423295733,1780041038000,-150.0,0.00013624,2]
[423295732,1780041038000,-1545.0,0.00013612,2]
[423295727,1780041038000,-374.13,0.00013512,2]
[423295735,1780041038000,-150.0,0.00013654,2]
[423295737,1780041038000,-150.0,0.00013675,2]
[423295736,1780041038000,-150.0,0.00013669,2]
[423295741,1780041038000,-2500.0,0.00013699,2]
[423295734,1780041038000,-820.0,0.00013653,2]
[423295803,1780041039000,-150.0,0.00013987,2]
[423295809,1780041039000,-209.879676,0.00014,2]
[423295807,1780041039000,-2554.66760727,0.00013988,2]
[423295805,1780041039000,-150.0,0.00013987,2]
[423295801,1780041039000,-150.0,0.00013987,2]
[423295785,1780041039000,-294.68372899,0.00013904,2]
[423295799,1780041039000,-500.0,0.00013949,2]
[423295790,1780041039000,-150.0,0.00013904,2]
[423295789,1780041039000,-150.0,0.00013904,2]
[423295795,1780041039000,-251.12019631,0.00013904,2]
[423295822,1780041039000,-480.14414772,0.00014027,2]
[423295797,1780041039000,-150.0,0.00013942,2]
[423295820,1780041039000,-500.0,0.00014027,2]
[423295834,1780041039000,-500.0,0.00014027,2]
[423295813,1780041039000,-302.42221436,0.00014027,2]
[423295818,1780041039000,-500.0,0.00014027,2]
[423295824,1780041039000,-500.0,0.00014027,2]
[423295826,1780041039000,-500.0,0.00014027,2]
[423295828,1780041039000,-500.0,0.00014027,2]
[423295830,1780041039000,-500.0,0.00014027,2]
[423295832,1780041039000,-500.0,0.00014027,2]
[423295840,1780041039000,-500.0,0.00014027,2]
[423295845,1780041039000,-500.0,0.00014027,2]
[423295847,1780041039000,-500.0,0.00014027,2]
[423295836,1780041039000,-500.0,0.00014027,2]
[423295788,1780041039000,-150.0,0.00013904,2]
[423295843,1780041039000,-500.0,0.00014027,2]
[423295811,1780041039000,-150.0,0.00014027,2]
[423295787,1780041039000,-623.19531483,0.00013904,2]
[423295781,1780041039000,-500.0,0.00013904,2]
[423295793,1780041039000,-150.0,0.00013904,2]
[423295755,1780041039000,-500.0,0.00013904,2]
[423295756,1780041039000,-500.0,0.00013904,2]
[423295757,1780041039000,-500.0,0.00013904,2]
[423295758,1780041039000,-500.0,0.00013904,2]
[423295761,1780041039000,-500.0,0.00013904,2]
[423295763,1780041039000,-500.0,0.00013904,2]
[423295767,1780041039000,-500.0,0.00013904,2]
[423295762,1780041039000,-500.0,0.00013904,2]
[423295759,1780041039000,-500.0,0.00013904,2]
[423295760,1780041039000,-500.0,0.00013904,2]
[423295765,1780041039000,-500.0,0.00013904,2]
[423295769,1780041039000,-500.0,0.00013904,2]
[423295771,1780041039000,-500.0,0.00013904,2]
[423295770,1780041039000,-500.0,0.00013904,2]
[423295772,1780041039000,-153.36655064,0.00013904,2]
[423295773,1780041039000,-500.0,0.00013904,2]
[423295774,1780041039000,-500.0,0.00013904,2]
[423295838,1780041039000,-500.0,0.00014027,2]
[423295775,1780041039000,-500.0,0.00013904,2]
[423295780,1780041039000,-500.0,0.00013904,2]
[423295777,1780041039000,-150.0,0.00013904,2]
[423295776,1780041039000,-500.0,0.00013904,2]
[423295778,1780041039000,-500.0,0.00013904,2]
[423295779,1780041039000,-150.0,0.00013904,2]
[423295783,1780041039000,-500.0,0.00013904,2]
[423295782,1780041039000,-201.93190072,0.00013904,2]
[423295784,1780041039000,-500.0,0.00013904,2]
[423295786,1780041039000,-500.0,0.00013904,2]
[423295791,1780041039000,-150.0,0.00013904,2]
[423295792,1780041039000,-258.03979203,0.00013904,2]
[423295849,1780041039000,-500.0,0.00014027,2]
[423295816,1780041039000,-500.0,0.00014027,2]
[423295851,1780041039000,-500.0,0.00014027,2]
[423295903,1780041039000,-500.0,0.00014056,2]
[423295905,1780041039000,-584.71,0.00014056,2]
[423295906,1780041039000,-150.0,0.00014078,2]
[423295904,1780041039000,-500.0,0.00014056,2]
[423295910,1780041039000,-500.0,0.00014177,2]
[423295921,1780041039000,-150.0,0.00014326,2]
[423295920,1780041039000,-150.0,0.0001432,2]
[423295922,1780041039000,-191.47687019,0.00014326,2]
[423295912,1780041039000,-150.0,0.00014237,2]
[423295911,1780041039000,-150.0,0.00014214,2]
[423295913,1780041039000,-150.0,0.00014237,2]
[423295914,1780041039000,-171.35361104,0.0001425,2]
[423295916,1780041039000,-150.0,0.0001426,2]
[423295902,1780041039000,-828.09,0.00014056,2]
[423295918,1780041039000,-2200.0,0.000143,5]
[423295919,1780041039000,-150.0,0.00014305,2]
[423295923,1780041039000,-150.0,0.00014351,2]
[423295924,1780041039000,-150.0,0.00014396,2]
[423295933,1780041039000,-150.0,0.00014487,2]
[423295925,1780041039000,-1726.4898,0.000144,2]
[423295929,1780041039000,-150.0,0.00014441,2]
[423295926,1780041039000,-4400.0,0.000144,5]
[423295927,1780041039000,-150.0,0.00014424,2]
[423295932,1780041039000,-150.0,0.00014487,2]
[423295930,1780041039000,-170.49062066,0.00014451,2]
[423295928,1780041039000,-150.0,0.00014424,2]
[423295931,1780041039000,-150.0,0.00014487,2]
[423295853,1780041039000,-500.0,0.00014027,2]
[423295917,1780041039000,-1200.0,0.00014299,2]
[423295901,1780041039000,-502.6690024,0.00014056,2]
[423295915,1780041039000,-150.30096206,0.0001425,2]
[423295899,1780041039000,-500.0,0.00014056,2]
[423295900,1780041039000,-500.0,0.00014056,2]
[423295857,1780041039000,-500.0,0.00014027,2]
[423295870,1780041039000,-500.0,0.00014027,2]
[423295867,1780041039000,-582.54117721,0.00014027,2]
[423295866,1780041039000,-500.0,0.00014027,2]
[423295872,1780041039000,-500.0,0.00014027,2]
[423295869,1780041039000,-500.0,0.00014027,2]
[423295858,1780041039000,-500.0,0.00014027,2]
[423295860,1780041039000,-500.0,0.00014027,2]
[423295862,1780041039000,-500.0,0.00014027,2]
[423295863,1780041039000,-500.0,0.00014027,2]
[423295874,1780041039000,-500.0,0.00014027,2]
[423295876,1780041039000,-500.0,0.00014027,2]
[423295888,1780041039000,-150.0,0.0001405,2]
[423295890,1780041039000,-500.0,0.00014056,2]
[423295855,1780041039000,-500.0,0.00014027,2]
[423295909,1780041039000,-150.0,0.00014169,2]
[423295908,1780041039000,-150.0,0.00014154,2]
[423295907,1780041039000,-150.0,0.00014123,2]
[423295898,1780041039000,-526.78798976,0.00014056,2]
[423295878,1780041039000,-500.0,0.00014027,2]
[423295896,1780041039000,-500.0,0.00014056,2]
[423295895,1780041039000,-500.0,0.00014056,2]
[423295897,1780041039000,-793.84,0.00014056,2]
[423295886,1780041039000,-150.0,0.0001405,2]
[423295894,1780041039000,-500.0,0.00014056,2]
[423295882,1780041039000,-500.0,0.00014027,2]
[423295892,1780041039000,-500.0,0.00014056,2]
[423295880,1780041039000,-500.0,0.00014027,2]
[423295884,1780041039000,-150.0,0.00014033,2]
[423295986,1780041040000,-500.0,0.00014815,2]
[423295977,1780041040000,-965.65186372,0.00014799,2]
[423295975,1780041040000,-150.0,0.00014799,2]
[423295993,1780041040000,-717.81,0.00014836,2]
[423295971,1780041040000,-1196.45321706,0.00014795,2]
[423295965,1780041040000,-20540.183877,0.00014776,2]
[423295972,1780041040000,-500.5076375,0.00014796,2]
[423295970,1780041040000,-841.3188791,0.00014795,2]
[423295962,1780041040000,-150.0,0.00014759,2]
[423295966,1780041040000,-3299.09032902,0.00014778,2]
[423295968,1780041040000,-5948.57105178,0.00014791,2]
[423295978,1780041040000,-5000.0,0.000148,2]
[423295969,1780041040000,-388.62747933,0.00014795,2]
[423295980,1780041040000,-150.0,0.00014805,2]
[423295987,1780041040000,-500.0,0.00014815,2]
[423295981,1780041040000,-4688.36364562,0.00014807,2]
[423295979,1780041040000,-2200.0,0.000148,5]
[423295985,1780041040000,-500.0,0.00014815,2]
[423295984,1780041040000,-500.0,0.00014815,2]
[423295982,1780041040000,-3299.09032902,0.00014808,2]
[423295983,1780041040000,-5948.57105178,0.00014809,2]
[423295989,1780041040000,-5948.57105178,0.00014828,2]
[423295998,1780041040000,-2213.7826342,0.00014837,2]
[423296000,1780041040000,-861.2286783,0.00014837,2]
[423295999,1780041040000,-29929.8853759,0.00014837,2]
[423295988,1780041040000,-150.0,0.0001482,2]
[423295990,1780041040000,-4688.36364562,0.0001483,2]
[423295997,1780041040000,-6490.6640169,0.00014837,2]
[423295976,1780041040000,-1139.49769058,0.00014799,2]
[423295973,1780041040000,-5000.0,0.00014797,2]
[423295934,1780041040000,-150.30096206,0.000145,2]
[423295964,1780041040000,-5948.57105178,0.00014773,2]
[423295935,1780041040000,-6600.0,0.000145,5]
[423295936,1780041040000,-150.0,0.00014532,2]
[423295937,1780041040000,-150.0,0.00014578,2]
[423295938,1780041040000,-8800.0,0.000146,5]
[423295942,1780041040000,-3299.09032907,0.00014625,2]
[423295941,1780041040000,-150.0,0.00014623,2]
[423295939,1780041040000,-150.0,0.00014612,2]
[423295945,1780041040000,-150.0,0.00014668,2]
[423295940,1780041040000,-150.0,0.00014612,2]
[423295944,1780041040000,-3299.09032902,0.00014656,2]
[423295943,1780041040000,-150.0,0.00014653,2]
[423295947,1780041040000,-300.0,0.00014696,2]
[423295946,1780041040000,-3299.09032902,0.00014686,2]
[423295949,1780041040000,-11000.0,0.000147,5]
[423295948,1780041040000,-967.344,0.00014699,2]
[423295951,1780041040000,-300.0,0.00014703,2]
[423295950,1780041040000,-6624.68587,0.000147,2]
[423295957,1780041040000,-5948.5710518,0.00014737,2]
[423295956,1780041040000,-1056.7547,0.0001473,2]
[423295953,1780041040000,-1543.0,0.00014708,2]
[423295959,1780041040000,-3299.09032902,0.00014747,2]
[423295958,1780041040000,-4688.36364568,0.00014737,2]
[423295952,1780041040000,-427.81413007,0.00014703,2]
[423295955,1780041040000,-3299.09032902,0.00014717,2]
[423295960,1780041040000,-150.30096206,0.0001475,2]
[423295954,1780041040000,-150.0,0.00014714,2]
[423295961,1780041040000,-5948.57105178,0.00014755,2]
[423295974,1780041040000,-150.0,0.00014799,2]
[423295963,1780041040000,-4688.36364562,0.0001476,2]
[423295967,1780041040000,-4688.36364562,0.00014784,2]
[423295992,1780041040000,-804.61,0.00014836,2]
[423296022,1780041040000,-941.53,0.00014898,2]
[423295991,1780041040000,-624.63,0.00014836,2]
[423296029,1780041040000,-804.61,0.00014898,2]
[423296037,1780041040000,-500.0,0.00014898,2]
[423296033,1780041040000,-500.0,0.00014898,2]
[423296032,1780041040000,-717.81,0.00014898,2]
[423296038,1780041040000,-500.0,0.00014898,2]
[423296050,1780041040000,-7889.501,0.000149,2]
[423296040,1780041040000,-500.0,0.00014898,2]
[423296051,1780041040000,-2570.7235,0.000149,2]
[423296052,1780041040000,-10000.0,0.000149,2]
[423296039,1780041040000,-500.0,0.00014898,2]
[423296042,1780041040000,-502.23541788,0.00014899,2]
[423296044,1780041040000,-941.53,0.00014899,2]
[423296043,1780041040000,-500.0,0.00014899,2]
[423296045,1780041040000,-500.0,0.00014899,2]
[423296049,1780041040000,-500.000001,0.000149,2]
[423296041,1780041040000,-470321.0128,0.00014899,2]
[423296047,1780041040000,-500.0,0.00014899,2]
[423296046,1780041040000,-500.0,0.00014899,2]
[423296048,1780041040000,-500.0,0.00014899,2]
[423296053,1780041040000,-5268.15610031,0.000149,2]
[423296061,1780041040000,-343.0,0.00014959,2]
[423296056,1780041040000,-19496.31542711,0.000149,2]
[423296059,1780041040000,-1139.49769058,0.000149,2]
[423296058,1780041040000,-5948.57105178,0.000149,2]
[423296060,1780041040000,-150.0,0.00014941,2]
[423296054,1780041040000,-2200.0,0.000149,5]
[423296055,1780041040000,-3299.09032902,0.000149,2]
[423296057,1780041040000,-4688.36364562,0.000149,2]
[423295994,1780041040000,-500.0,0.00014836,2]
[423296034,1780041040000,-500.0,0.00014898,2]
[423296035,1780041040000,-500.0,0.00014898,2]
[423296028,1780041040000,-624.63,0.00014898,2]
[423296007,1780041040000,-4688.36364562,0.00014853,2]
[423295996,1780041040000,-143402.417141,0.00014837,2]
[423296001,1780041040000,-7384.1511896,0.00014837,2]
[423296004,1780041040000,-1139.49769058,0.0001485,2]
[423296003,1780041040000,-5948.57105178,0.00014846,2]
[423296002,1780041040000,-3299.09032902,0.00014839,2]
[423296005,1780041040000,-504.58739331,0.0001485,2]
[423296012,1780041040000,-200.0,0.0001488,2]
[423296006,1780041040000,-150.0,0.0001485,2]
[423296008,1780041040000,-5948.57105178,0.00014864,2]
[423296010,1780041040000,-4688.36364562,0.00014877,2]
[423296011,1780041040000,-1000.0,0.0001488,2]
[423296009,1780041040000,-3299.09032902,0.00014869,2]
[423296036,1780041040000,-500.0,0.00014898,2]
[423296013,1780041040000,-5948.57105178,0.00014882,2]
[423296014,1780041040000,-150.0,0.00014895,2]
[423296017,1780041040000,-500.0,0.00014898,2]
[423296018,1780041040000,-500.0,0.00014898,2]
[423296015,1780041040000,-500.0,0.00014898,2]
[423296016,1780041040000,-500.0,0.00014898,2]
[423296021,1780041040000,-941.53,0.00014898,2]
[423296020,1780041040000,-620.68779555,0.00014898,2]
[423296019,1780041040000,-500.0,0.00014898,2]
[423296023,1780041040000,-500.0,0.00014898,2]